Cogmind - Beta 9.6 *** ADVENTURER MODE // 2020.05.20 @ 19:09:03 Player: Gear-Mind Result: Destroyed by D-53 Grenadier with Mini Grenade Launcher Performance ------------- Evolutions (0) 0 Regions Visited (2) 400 Robots Destroyed (2) 10 Value Destroyed (3) 3 Prototype IDs (0) 0 Alien Tech Used (0) 0 Bonus (0) 0 TOTAL SCORE: 413 Bonus ------- None Cogmind --------- Core Integrity 0/250 Matter 290/300 Energy 100/100 System Corruption 4% Temperature Cool (0) Movement Rolling (90) Ox1 Location -10/Mines Parts ------- > --- POWER (1) -------- (None) > --- PROPULSION (2) --- Wheel > --- UTILITY (2) ------ Medium Storage Unit Visual Processing Unit > --- WEAPON (2) ------- Assault Rifle Mining Laser > --- INVENTORY (8) ---- Light Ion Engine Light Treads Light Treads Light Assault Rifle Mini Grenade Launcher Mining Claw Peak State ------------ > --- POWER ------------ Light Ion Engine > --- PROPULSION ------- Wheel Wheel > --- UTILITY ---------- Medium Storage Unit Visual Processing Unit > --- WEAPON ----------- Assault Rifle Light Assault Rifle > --- INVENTORY -------- Light Treads Light Treads Mining Claw [Rating: 8] Favorites ----------- Power Light Ion Engine Engine Light Ion Engine Propulsion Wheel Wheel Wheel Utility Medium Storage Unit Storage Medium Storage Unit Processor Visual Processing Unit Weapon Assault Rifle Ballistic Gun Assault Rifle Special Weapon Mining Laser Build | -11 -10 -10 ------- Run | Scr Mat Min Slots Evolved . | . . . Power . | . . . Propulsion . | . . . Utility . | . . . Weapon . | . . . Parts Attached 9 | 5 2 2 Power 1 | 1 . . Engine 1 | 1 . . Core . | . . . Reactor . | . . . Propulsion 2 | 2 . . Treads . | . . . Leg . | . . . Wheel 2 | 2 . . Hover . | . . . Flight . | . . . Utility 2 | . 2 . Device . | . . . Storage 1 | . 1 . Processor 1 | . 1 . Hackware . | . . . Protection . | . . . Artifact . | . . . Weapon 4 | 2 . 2 Energy Gun . | . . . Energy Cannon . | . . . Ballistic Gun 3 | 2 . 1 Ballistic Cannon . | . . . Launcher . | . . . Special Weapon 1 | . . 1 Impact Weapon . | . . . Slashing Weapon . | . . . Piercing Weapon . | . . . Special Melee Weapon . | . . . Unidentified Prototypes . | . . . Parts Lost 2 | . . 2 Power 1 | . . 1 Propulsion 1 | . . 1 Utility . | . . . Weapon . | . . . Highest Loss Streak 2 | . . 2 Average Slot Usage (%) 92 | . 87 97 Engine 12 | . 14 12 Wheel 27 | . 28 27 Storage 11 | . 9 14 Processor 10 | . 6 14 Ballistic Gun 25 | . 28 23 Special Weapon 2 | . . 4 Naked Turns . | . . . Heaviest Build 14 | 6 14 14 Greatest Support 20 | 20 20 20 Greatest Overweight (x) 1 | . . 1 Average Overweight (x) . | . . . Largest Inventory Capacity 8 | 4 8 8 Average Capacity 7 | 4 6 8 Most Carried 7 | 4 5 7 Average Carried 3 | 1 3 5 Final Capacity 8 | 4 8 8 Final Carried 6 | 2 5 6 Class Distribution -------------------- 100% | Mutant Dominant Class ---------------- Mutant | -10/Materials Mutant | -10/Mines Resources | -11 -10 -10 ----------- Run | Scr Mat Min Matter Collected 298 | 216 82 . Remotely . | . . . Salvage Created 80 | . 80 . Parts 5 | . 5 . Haulers Intercepted 1 | . 1 . Recyclers Shooed . | . . . Parts Field Recycled . | . . . Retrieved Matter . | . . . Parts Self-Destructed . | . . . Prevented . | . . . Kills | -11 -10 -10 ------- Run | Scr Mat Min Combat Hostiles Destroyed . | . . . Classes Destroyed 2 | . 2 . Worker 1 | . 1 . Hauler 1 | . 1 . Best Kill Streak 1 | . 1 . Combat Bots Only . | . . . Max Kills in Single Turn 1 | . 1 . Gunslinging . | . . . Exploded . | . . . Melee . | . . . Uniques/NPCs Destroyed . | . . . Combat | -11 -10 -10 -------- Run | Scr Mat Min Damage Taken 624 | . 36 588 Core 254 | . . 254 Absorbed by Shields . | . . . Core Remaining (%) 100 | 100 . . Volleys Fired 20 | . 7 13 Largest 2 | . 2 1 Hottest 100 | . 40 100 Shots Fired 27 | . 14 13 Gun 14 | . 14 . Cannon . | . . . Launcher . | . . . Special 13 | . . 13 Kinetic 14 | . 14 . Thermal 13 | . . 13 Explosive . | . . . Electromagnetic . | . . . Robot Hit Streak 7 | . 7 . Robot Miss Streak 5 | . 5 . Penetration Max . | . . . Secondary Targets . | . . . Shots Hit Robots 8 | . 8 . Core Hits 4 | . 4 . Critical Hits . | . . . Critical Kills . | . . . Critical Parts Destroyed . | . . . Melee Attacks . | . . . Impact . | . . . Slashing . | . . . Piercing . | . . . Sneak Attacks . | . . . Combat Hostiles . | . . . Follow-up Attacks . | . . . Damage Inflicted 91 | . 91 . Guns 91 | . 91 . Cannons . | . . . Explosions . | . . . Melee . | . . . Ramming . | . . . Kinetic 91 | . 91 . Thermal . | . . . Explosive . | . . . Electromagnetic . | . . . Impact . | . . . Slashing . | . . . Piercing . | . . . Highest Corruption 4 | . . 4 Average Corruption 3 | . . 3 Corruption Purged . | . . . Effects 1 | . . 1 Message Errors 1 | . . 1 Overload Shots . | . . . Overflow Damage . | . . . Projectiles . | . . . Explosions . | . . . Melee . | . . . Knockbacks . | . . . Impact . | . . . Kinetic . | . . . Secondary . | . . . Self-Inflicted Damage . | . . . Shots . | . . . Rammed . | . . . Targets Rammed . | . . . Kicked . | . . . Crushed . | . . . Highest Temperature 60 | . . 60 Average Temperature 29 | . . 29 Received Heat Transfer . | . . . Siege Activations . | . . . Robots Corrupted . | . . . Combat Hostiles . | . . . Parts Fried . | . . . Impact Corruptions . | . . . Robots Melted . | . . . Combat Hostiles . | . . . Parts Melted . | . . . Heat Transferred . | . . . Parts Sabotaged . | . . . Parts Stolen . | . . . Parts Stripped . | . . . Power Chain Reactions . | . . . Missiles Intercepted . | . . . Alert | -11 -10 -10 ------- Run | Scr Mat Min Peak Influence 46 | . 46 14 Average Influence 10 | . 9 12 Maximum Alert Level . | . . . Low Security (%) 100 | 100 100 100 Level 1 . | . . . Level 2 . | . . . Level 3 . | . . . Level 4 . | . . . Level 5 . | . . . High Security . | . . . Max Security . | . . . Squads Dispatched . | . . . Investigation . | . . . Extermination . | . . . Reinforcement . | . . . Assault . | . . . Garrison . | . . . Intercept . | . . . Construction Impeded . | . . . Haulers Reinforced . | . . . Stealth | -11 -10 -10 --------- Run | Scr Mat Min Distress Signals . | . . . Communications Jammed . | . . . Distress Signals . | . . . Times Spotted 7 | . 4 3 Peak Tracking Total 2 | . 2 2 Tactical Retreats . | . . . Traps | -11 -10 -10 ------- Run | Scr Mat Min Traps Triggered 1 | . 1 . Indirectly . | . . . Trap Hack Attempts . | . . . Triggered . | . . . Disarmed . | . . . Reprogrammed . | . . . Reused . | . . . Traps Extracted . | . . . Installed . | . . . Triggered . | . . . Machines | -11 -10 -10 ---------- Run | Scr Mat Min Machines Disabled . | . . . Max in Single Turn . | . . . Machines Sabotaged . | . . . Garrisons Compromised . | . . . Overloaded Fab Kills . | . . . Fab Network Shutdowns . | . . . Hacking | -11 -10 -10 --------- Run | Scr Mat Min Machines Accessed 3 | . 3 . Terminals 2 | . 2 . Fabricators . | . . . Repair Stations . | . . . Recycling Units 1 | . 1 . Scanalyzers . | . . . Garrison Access . | . . . Total Hacks 4 | . 4 . Successful 4 | . 4 . Failed . | . . . Catastrophic . | . . . Database Lockouts . | . . . Manual . | . . . Terminals 3 | . 3 . Fabricators . | . . . Repair Stations . | . . . Recycling Units 1 | . 1 . Scanalyzers . | . . . Garrison Access . | . . . Terminal Hacks 3 | . 3 . Record 2 | . 2 . Hauler Manifests 1 | . 1 . Fabricator Hacks . | . . . Repair Station Hacks . | . . . Recycling Unit Hacks 1 | . 1 . Report Inventory 1 | . 1 . Scanalyzer . | . . . Garrison Access Hacks . | . . . Unauthorized Hacks . | . . . Terminals . | . . . Fabricators . | . . . Repair Stations . | . . . Recycling Units . | . . . Scanalyzers . | . . . Garrison Access . | . . . Data Cores Recovered . | . . . Used . | . . . Hacking Detections 1 | . 1 . Full Trace Events . | . . . Feedback Events . | . . . Feedback Blocked . | . . . Robot Schematics Acquired . | . . . Robots Built . | . . . Matter . | . . . Time . | . . . Total Robot Build Rating . | . . . Part Schematics Acquired . | . . . Parts Built . | . . . Matter . | . . . Time . | . . . Total Part Build Rating . | . . . Parts Repaired . | . . . Time . | . . . Parts Recycled . | . . . Recycled Matter . | . . . Retrieved Matter . | . . . Retrieved Components . | . . . Parts Scanalyzed . | . . . Part Schematics Acquired . | . . . Parts Damaged . | . . . Bothacking | -11 -10 -10 ------------ Run | Scr Mat Min Used RIF Installer . | . . . Robots Hacked . | . . . Non-combat . | . . . Combat . | . . . Robot Hacks Applied . | . . . Relay Couplers Released . | . . . Robots Rewired . | . . . Allies Hacked . | . . . Hacks Repelled . | . . . Allies | -11 -10 -10 -------- Run | Scr Mat Min Total Allies 6 | . . 6 Largest Group 6 | . . 6 Highest-Rated Group 113 | . . 113 Highest-Rated Ally 31 | . . 31 Total Orders . | . . . Ally Attacks 1 | . . 1 Total Damage 17 | . . 17 Kills . | . . . Allies Corrupted . | . . . Allies Melted . | . . . Intel | -11 -10 -10 ------- Run | Scr Mat Min Robot Analysis Total . | . . . Derelict Logs Recovered 1 | . . 1 Drone Launches . | . . . Drone Recoveries . | . . . Exploration | -11 -10 -10 ------------- Run | Scr Mat Min Turns Passed 611 | 61 250 300 Spaces Moved 622 | 75 280 267 Core 36 | 36 . . Treads . | . . . Legs . | . . . Wheels 586 | 39 280 267 Hover . | . . . Flight . | . . . Fastest Speed 50 | 50 80 80 Average Speed 78 | 65 80 80 Slowest Speed 90 | 80 80 90 Overloaded Moves . | . . . Propulsion Burnouts . | . . . Robots Hopped . | . . . Cave-ins Triggered 2 | . . 2 Exploration Rate (%) 31 | 3 42 50 Regions Visited 2 Branch Regions 1 Pre-discovered Areas 1 | . . 1 Known Exits Taken . | . . . Unknown Exits Taken 2 | 1 1 . Scrap Searched 1 | . . 1 Spaces Dug 13 | . . 13 Terrain Destroyed 13 | . . 13 Melee . | . . . Projectile 13 | . . 13 AOE . | . . . Actions | -11 -10 -10 --------- Run | Scr Mat Min Total 692 | 86 293 313 Wait 28 | . . 28 Move 619 | 74 279 266 Hop . | . . . Pick Up 13 | 7 5 1 Fast Attach . | . . . Attach 9 | 5 2 2 Detach 2 | . . 2 Swap . | . . . Drop . | . . . Fire 20 | . 7 13 Melee . | . . . Ram . | . . . Kick . | . . . Crush . | . . . Escape Stasis 1 | . . 1 Rewire . | . . . Trap . | . . . Miscellaneous . | . . . Route ------- -11/Scrapyard -10/Materials (discovered 2 exits: [*Mat] / [*Min]) -10/Mines History --------- Turn | Location | Event 2 | -11/Scrapyard | Met Revision 17 5 | -11/Scrapyard | Discovered new exit (range 15) 62 | -11/Scrapyard | Entered Materials 152 | -10/Materials | Discovered new exit (range 15) 171 | -10/Materials | Discovered new exit (range 8) 304 | -10/Materials | Build established: Mutant 312 | -10/Materials | Entered Mines 317 | -10/Mines | Assisted by bots powering up and referring to "LRC-V3" 336 | -10/Mines | Assembled infested the area 341 | -10/Mines | Assisted by a Guerilla fighting off Assembled 351 | -10/Mines | Learned location of Mines (-8) 519 | -10/Mines | Received a Mining Laser from a helpful Derelict 577 | -10/Mines | Crushed by falling debris 577 | -10/Mines | Core integrity fell below 50% 577 | -10/Mines | Core integrity fell below 20% 592 | -10/Mines | Crushed by falling debris 612 | -10/Mines | Destroyed by D-53 Grenadier with Mini Grenade Launcher Last Messages --------------- 00565_ 9 Matter crushed. 00575_ The unstable cave ceiling collapses. 00575_ 2I-JTD(z) crushed by falling debris. 00575_ 2I-JTD(z) destroyed. 00575_ The unstable cave ceiling collapses. 00575_ B6-1DN(g) crushed by falling debris. 00577_ The unstable cave ceiling collapses. 00577_ Crushed by falling debris. 00577_ Lgt. Ion Engine destroyed. 00577_ System corrupted by crushing effect (+2). 00589_ The unstable cave ceiling collapses. 00592_ Crushed by falling debris. 00592_ Wheel destroyed. 00592_ System corrupted by crushing effect (+2). 00595_ K-01 Serf collects debris. 00602_ K-01 Serf destroyed. 00609_ The unstable cave ceiling collapses. 00610_ U-05 Engineer lays Concrete. 00611_ SP9FIHXU=KW9B 4QRWFY>G FV 0 BFC9S 00611_ U-05 Engineer lays Concrete. Map ----- +----------------------------------------------------+ | ???## #????????????????????????????????????? | | ???# #????????????????????????????????????? | | ???# ##???????????????????????????????????? | | ???# ##??????????????????????????????????? | | ????# ####???????????????????????????????? | | ?????# ########????????????????????????? | | ??????# ?????????????????????????? | | ??????# #??????????????????????????????? | | ???????# #??????????????????????????????? | | ???????# ##??????????????????????????????? | | ???????# ###???????????????????????????????? | | ???????# ##?????????????????????????????????? | | ??????## ##?????????????????????????????????? | | ??????# ##????????????????????????????????? | | ??????# #????????????????????????????????? | | ??????## ########?????????????????????????? | | ???????## #?????????????????????????? | | ????????# ##????????????????????????? | | ????????# ####### #???????????????????????? | | ????????# ## #???????# ???????????????????????? | | ????????# ##? ??????# ##??????????????????????? | | ????????# ### ## #???## ###????????????????????? | | ????????# ## ##### ##???????????????????? | | ????????# #####?? % #???????????????????? | | ????????# #????????## #???????????????????? | | ????????# #?######## d@ #???????????????????? | | ????????# #?# #???????????????????? | | ????????# #?# ####### k #???????????????????# | | ????????# #?# #?????# #???????????????????# | | ????????# #?# ####### ####??????????????????# | | ????????# #?# # #??????????????????# | | ????????# #?# #### # ####???####????????? | | ?######## #?# #??# # ##?## #????????? | | ?# #?# #??# # ### #########? | | ?# ########### ##?# #? | | ?# ######## ### #? | | ?# """ #### %= ########! ## | | ?# """ #?## #??????#%! | | ?### #### """ #??#### ## ##??????#! | | ???# #??### ##????##u ##########???????##### | | ???# #????## ###????## ##????????????????????# | | ???# ######## ##??????# #?????????????????????# | | ?### ## #####????#### #?????????????????????? | | ## ########## # #?????????????????????? | | # # # # ######?????????????????????? | | # ############??????????????????????????? | | ## ##?????????????????????????????????????? | | ?## ##??????????????????????????????????????? | | ??# ##???????????????????????????????????????? | | ??## ##????????????????????????????????????????? | +----------------------------------------------------+ Best States ------------- Heat Dissipation 25 Energy Generation 10 Energy Capacity 125 Matter Stores 300 Matter Capacity 300 Sight Range 18 Terrain Scan Density 10 Resistance: KI 20 Resistance: TH 20 Resistance: EX 20 Resistance: EM 20 Resistance: I 20 Resistance: S 20 Resistance: P 20 Evasion (%) 50 Offensive Hacking 10 Item Schematics ----------------- None Robot Schematics ------------------ None Fabricated ------------ Nothing Alien Tech Used ----------------- None Achievements -------------- The More The Merrier Challenges ------------ None Game ------ Seed WeaponWarpMallet Manual? 0 Play Time 00:08:43 Cumulative 9.4 hours Start 2020.05.20 @ 18:59:57 End 2020.05.20 @ 19:09:03 Sessions 1 Manual Loads 0 Difficulty Adventurer Special Mode None Game No. 16 Rogue 0 Adventurer 16 Explorer 0 Win Type - Total 0 Types 0/0/0/0/0/0/0 Lore% 7 Gallery% 16 Achievement% 14 Wizard Run 0 Options --------- ASCII 0 Keyboard 1 Movement Arrows Keybinds 0 Fullscreen 2 Font 18/CogNarrow Map View 76x50 Tactical HUD 1 Map Filters NONE Filters NONE Steam 0 RUN: 6d8a2fec-a150-4769-802f-7f10fca4691a